[Event "Late-Titled-Tuesday-Blitz-April-30-2024"]
[Site "Chess.com"]
[Date "2024.04.30"]
[Round "10"]
[White "stregachess"]
[Black "StelaSfw"]
[Result "1-0"]
[WhiteElo "2019"]
[BlackElo "1672"]
[TimeControl "180+1"]
[EndTime "15:54:11 PDT"]
[Termination "stregachess won on time"]

1. d4 {[%clk 0:03:00.9]} 1... Nf6 {[%clk 0:02:58.3]} 2. Nf3 {[%clk 0:03:01]}
2... e6 {[%clk 0:02:58.5]} 3. Bf4 {[%clk 0:03:01.1]} 3... d5 {[%clk 0:02:55.9]}
4. e3 {[%clk 0:03:01.3]} 4... Nbd7 {[%clk 0:02:55.6]} 5. Be2 {[%clk 0:03:00.9]}
5... c5 {[%clk 0:02:54.6]} 6. c3 {[%clk 0:03:00.5]} 6... c4 {[%clk 0:02:53.7]}
7. Nbd2 {[%clk 0:02:59.3]} 7... Be7 {[%clk 0:02:54]} 8. h3 {[%clk 0:02:59.1]}
8... O-O {[%clk 0:02:54]} 9. O-O {[%clk 0:02:57.5]} 9... h6 {[%clk 0:02:54.2]}
10. b3 {[%clk 0:02:56.6]} 10... b5 {[%clk 0:02:53.8]} 11. Ne5 {[%clk 0:02:47.1]}
11... Bb7 {[%clk 0:02:50]} 12. Qc2 {[%clk 0:02:46.3]} 12... a6 {[%clk
0:02:38.9]} 13. Bf3 {[%clk 0:02:45.9]} 13... cxb3 {[%clk 0:02:36.9]} 14. axb3
{[%clk 0:02:42.6]} 14... Nb6 {[%clk 0:02:35.7]} 15. Rfc1 {[%clk 0:02:36.4]}
15... Rc8 {[%clk 0:02:35.7]} 16. Qd3 {[%clk 0:02:36.5]} 16... Ne8 {[%clk
0:02:12.3]} 17. e4 {[%clk 0:02:33.9]} 17... dxe4 {[%clk 0:02:10]} 18. Nxe4
{[%clk 0:02:33.2]} 18... Bxe4 {[%clk 0:01:56.2]} 19. Bxe4 {[%clk 0:02:31.5]}
19... Nd6 {[%clk 0:01:54.7]} 20. Rxa6 {[%clk 0:02:16.4]} 20... Nxe4 {[%clk
0:01:46.9]} 21. Qxe4 {[%clk 0:02:16.1]} 21... Nd5 {[%clk 0:01:43.6]} 22. Bd2
{[%clk 0:02:09.2]} 22... Bg5 {[%clk 0:01:26.3]} 23. f4 {[%clk 0:02:01.1]} 23...
Bf6 {[%clk 0:01:24.3]} 24. Raa1 {[%clk 0:01:45.1]} 24... Bxe5 {[%clk 0:01:21.5]}
25. fxe5 {[%clk 0:01:45.1]} 25... Qc7 {[%clk 0:01:13.2]} 26. c4 {[%clk
0:01:43.2]} 26... bxc4 {[%clk 0:01:12.1]} 27. bxc4 {[%clk 0:01:43.2]} 27... Ne7
{[%clk 0:01:06.4]} 28. d5 {[%clk 0:01:35.2]} 28... Ng6 {[%clk 0:01:07.3]} 29. d6
{[%clk 0:01:25.9]} 29... Qd7 {[%clk 0:01:03.8]} 30. c5 {[%clk 0:01:20.6]} 30...
Rfd8 {[%clk 0:01:01]} 31. Be3 {[%clk 0:01:19.9]} 31... Qb5 {[%clk 0:00:41.7]}
32. Rab1 {[%clk 0:01:00.1]} 32... Qa5 {[%clk 0:00:31.8]} 33. h4 {[%clk
0:00:53.1]} 33... Qa8 {[%clk 0:00:17.8]} 34. Qxa8 {[%clk 0:00:49.3]} 34... Rxa8
{[%clk 0:00:18.7]} 35. Bd4 {[%clk 0:00:48.7]} 35... Ra4 {[%clk 0:00:18.1]} 36.
Rd1 {[%clk 0:00:43.1]} 36... Nxh4 {[%clk 0:00:15.8]} 37. c6 {[%clk 0:00:39.7]}
37... Nf5 {[%clk 0:00:15]} 38. c7 {[%clk 0:00:33.3]} 38... Rc8 {[%clk
0:00:11.3]} 39. d7 {[%clk 0:00:33.5]} 39... Rxd4 {[%clk 0:00:04.3]} 40. dxc8=Q+
{[%clk 0:00:32.3]} 40... Kh7 {[%clk 0:00:01.1]} 41. Rxd4 {[%clk 0:00:32.3]} 1-0

[Event "Late-Titled-Tuesday-Blitz-April-30-2024"]
[Site "Chess.com"]
[Date "2024.04.30"]
[Round "10"]
[White "TheAlienParty"]
[Black "rionelG"]
[Result "1-0"]
[WhiteElo "2430"]
[BlackElo "2278"]
[TimeControl "180+1"]
[EndTime "15:54:17 PDT"]
[Termination "TheAlienParty won on time"]

1. c4 {[%clk 0:03:00.1]} 1... e5 {[%clk 0:02:50.2]} 2. Nc3 {[%clk 0:02:58.8]}
2... Nc6 {[%clk 0:02:50.4]} 3. Nf3 {[%clk 0:02:58.1]} 3... f5 {[%clk 0:02:49.8]}
4. g3 {[%clk 0:02:54.9]} 4... Nf6 {[%clk 0:02:48.9]} 5. d4 {[%clk 0:02:54.8]}
5... e4 {[%clk 0:02:48.3]} 6. Nh4 {[%clk 0:02:54.6]} 6... g6 {[%clk 0:02:39]} 7.
Bg5 {[%clk 0:02:53.4]} 7... Bg7 {[%clk 0:02:38.2]} 8. Ng2 {[%clk 0:02:49]} 8...
O-O {[%clk 0:02:27.7]} 9. Nf4 {[%clk 0:02:46.3]} 9... Qe8 {[%clk 0:02:27.1]} 10.
Ncd5 {[%clk 0:02:38.7]} 10... Qd8 {[%clk 0:02:13.6]} 11. h4 {[%clk 0:02:36.2]}
11... Ne7 {[%clk 0:02:04.4]} 12. Ne3 {[%clk 0:02:24.3]} 12... h6 {[%clk
0:01:55.3]} 13. Bxf6 {[%clk 0:02:21.6]} 13... Bxf6 {[%clk 0:01:56.2]} 14. g4
{[%clk 0:02:17]} 14... d6 {[%clk 0:01:41.6]} 15. h5 {[%clk 0:02:11.1]} 15... g5
{[%clk 0:01:39.6]} 16. Nfd5 {[%clk 0:02:05.8]} 16... f4 {[%clk 0:01:31.9]} 17.
Nxf6+ {[%clk 0:02:04.7]} 17... Rxf6 {[%clk 0:01:28.9]} 18. Nd5 {[%clk
0:02:01.8]} 18... Nxd5 {[%clk 0:01:28.5]} 19. cxd5 {[%clk 0:02:01.7]} 19... Bxg4
{[%clk 0:01:27.5]} 20. Qc2 {[%clk 0:01:59.8]} 20... Bf5 {[%clk 0:01:25.6]} 21.
e3 {[%clk 0:01:58.6]} 21... Rc8 {[%clk 0:00:55.4]} 22. Qb3 {[%clk 0:01:50]}
22... c5 {[%clk 0:00:51.2]} 23. dxc6+ {[%clk 0:01:45.4]} 23... Kg7 {[%clk
0:00:45]} 24. Qxb7+ {[%clk 0:01:37.8]} 24... Rf7 {[%clk 0:00:37.8]} 25. Qa6
{[%clk 0:01:35.5]} 25... Rb8 {[%clk 0:00:24.7]} 26. b3 {[%clk 0:01:29.5]} 26...
Rb6 {[%clk 0:00:19.9]} 27. Qa4 {[%clk 0:01:27.9]} 27... Rc7 {[%clk 0:00:20.1]}
28. Rc1 {[%clk 0:01:25.7]} 28... Bd7 {[%clk 0:00:15.4]} 29. d5 {[%clk
0:01:24.7]} 29... Bg4 {[%clk 0:00:12.7]} 30. Qd4+ {[%clk 0:01:22.9]} 30... Qf6
{[%clk 0:00:11.4]} 31. Qxe4 {[%clk 0:01:21.8]} 31... Qb2 {[%clk 0:00:07.8]} 32.
Qg6+ {[%clk 0:01:16.1]} 32... Kf8 {[%clk 0:00:07.7]} 33. Qxd6+ {[%clk
0:01:14.5]} 33... Ke8 {[%clk 0:00:07.2]} 34. Qg6+ {[%clk 0:01:08.9]} 34... Kd8
{[%clk 0:00:06]} 35. Qc2 {[%clk 0:00:58]} 35... Qxc2 {[%clk 0:00:02.7]} 36. Rxc2
{[%clk 0:00:57.6]} 36... Bf3 {[%clk 0:00:03.4]} 37. Rg1 {[%clk 0:00:51]} 37...
Bxd5 {[%clk 0:00:03.3]} 38. Rd2 {[%clk 0:00:50.9]} 38... Ke7 {[%clk 0:00:02.4]}
39. Rxd5 {[%clk 0:00:50.2]} 39... Rbxc6 {[%clk 0:00:03.1]} 40. Bc4 {[%clk
0:00:49.3]} 40... fxe3 {[%clk 0:00:02]} 41. fxe3 {[%clk 0:00:48.9]} 41... Re6
{[%clk 0:00:01.8]} 42. Kd2 {[%clk 0:00:48.3]} 42... Rc8 {[%clk 0:00:01.6]} 43.
Kd3 {[%clk 0:00:47.3]} 43... Rf8 {[%clk 0:00:01.3]} 44. Ra5 {[%clk 0:00:46.1]}
44... Rf3 {[%clk 0:00:00.7]} 45. Bxe6 {[%clk 0:00:44.4]} 1-0

[Event "Late-Titled-Tuesday-Blitz-April-30-2024"]
[Site "Chess.com"]
[Date "2024.04.30"]
[Round "10"]
[White "Jakhongir-Vakhidov"]
[Black "DrVelja"]
[Result "0-1"]
[WhiteElo "2768"]
[BlackElo "2969"]
[TimeControl "180+1"]
[EndTime "15:54:19 PDT"]
[Termination "DrVelja won by checkmate"]

1. c4 {[%clk 0:03:00.9]} 1... Nf6 {[%clk 0:02:57.6]} 2. Nc3 {[%clk 0:03:01.5]}
2... g6 {[%clk 0:02:58.3]} 3. g3 {[%clk 0:03:02.2]} 3... Bg7 {[%clk 0:02:58.5]}
4. Bg2 {[%clk 0:03:02.9]} 4... O-O {[%clk 0:02:59.4]} 5. d4 {[%clk 0:03:03.6]}
5... d6 {[%clk 0:02:59.8]} 6. Nf3 {[%clk 0:03:04.3]} 6... c6 {[%clk 0:03:00.5]}
7. O-O {[%clk 0:03:04.7]} 7... Bf5 {[%clk 0:03:01.1]} 8. Re1 {[%clk 0:03:02.5]}
8... Ne4 {[%clk 0:03:00.2]} 9. Qb3 {[%clk 0:03:02.6]} 9... Nxc3 {[%clk
0:03:00.9]} 10. bxc3 {[%clk 0:03:00.2]} 10... Bc8 {[%clk 0:03:01.6]} 11. e4
{[%clk 0:02:57.7]} 11... c5 {[%clk 0:03:00.7]} 12. Ba3 {[%clk 0:02:28.6]} 12...
Nd7 {[%clk 0:02:52.6]} 13. e5 {[%clk 0:02:27.3]} 13... Qc7 {[%clk 0:02:52.1]}
14. e6 {[%clk 0:01:56.1]} 14... fxe6 {[%clk 0:02:29.6]} 15. Ng5 {[%clk
0:01:56.4]} 15... Nb6 {[%clk 0:02:23.2]} 16. Nxe6 {[%clk 0:01:53.7]} 16... Bxe6
{[%clk 0:02:23.7]} 17. Rxe6 {[%clk 0:01:54.6]} 17... Kh8 {[%clk 0:02:06]} 18.
Rae1 {[%clk 0:01:47.1]} 18... Bf6 {[%clk 0:02:05.1]} 19. dxc5 {[%clk 0:01:37.9]}
19... dxc5 {[%clk 0:02:06]} 20. Bc1 {[%clk 0:01:34.7]} 20... Rad8 {[%clk
0:02:05.5]} 21. Bf4 {[%clk 0:01:28.7]} 21... Qd7 {[%clk 0:02:05.3]} 22. Bf1
{[%clk 0:00:57.9]} 22... g5 {[%clk 0:01:32.1]} 23. Bc1 {[%clk 0:00:57.7]} 23...
Na4 {[%clk 0:01:30.6]} 24. R6e3 {[%clk 0:00:50.6]} 24... Nb6 {[%clk 0:01:24.7]}
25. Qa3 {[%clk 0:00:48.9]} 25... Qf5 {[%clk 0:01:23.5]} 26. f3 {[%clk
0:00:38.7]} 26... Nd7 {[%clk 0:01:08.4]} 27. Bd3 {[%clk 0:00:38.1]} 27... Qh3
{[%clk 0:01:05.8]} 28. Bf1 {[%clk 0:00:34.9]} 28... Qf5 {[%clk 0:01:06.1]} 29.
Bd3 {[%clk 0:00:19.1]} 29... Qh3 {[%clk 0:01:06.7]} 30. Qb3 {[%clk 0:00:08.5]}
30... Ne5 {[%clk 0:01:03.7]} 31. Be4 {[%clk 0:00:08.5]} 31... b6 {[%clk
0:00:44.1]} 32. Qa4 {[%clk 0:00:07.7]} 32... Rd7 {[%clk 0:00:32.4]} 33. Bd5
{[%clk 0:00:06.1]} 33... g4 {[%clk 0:00:24.2]} 34. Rxe5 {[%clk 0:00:04.6]} 34...
Bxe5 {[%clk 0:00:23.3]} 35. Qxd7 {[%clk 0:00:03.8]} 35... Bxg3 {[%clk 0:00:22]}
36. hxg3 {[%clk 0:00:03.3]} 36... Qxg3+ {[%clk 0:00:22.9]} 37. Kf1 {[%clk
0:00:03.2]} 37... gxf3 {[%clk 0:00:23.5]} 38. Re2 {[%clk 0:00:01.1]} 38... fxe2+
{[%clk 0:00:22]} 39. Kxe2 {[%clk 0:00:02]} 39... Rf2+ {[%clk 0:00:21.9]} 40. Kd1
{[%clk 0:00:02.2]} 40... Qg1# {[%clk 0:00:22.8]} 0-1

[Event "Late-Titled-Tuesday-Blitz-April-30-2024"]
[Site "Chess.com"]
[Date "2024.04.30"]
[Round "10"]
[White "HansOnTwitch"]
[Black "Adar_07"]
[Result "1-0"]
[WhiteElo "3174"]
[BlackElo "2726"]
[TimeControl "180+1"]
[EndTime "15:54:21 PDT"]
[Termination "HansOnTwitch won by resignation"]

1. e4 {[%clk 0:03:00.9]} 1... e5 {[%clk 0:02:58.4]} 2. Nf3 {[%clk 0:03:00.4]}
2... Nc6 {[%clk 0:02:58.9]} 3. Bc4 {[%clk 0:03:01.1]} 3... Bc5 {[%clk
0:02:58.4]} 4. d3 {[%clk 0:03:01.5]} 4... d6 {[%clk 0:02:58.7]} 5. O-O {[%clk
0:03:02.1]} 5... Nf6 {[%clk 0:02:58.8]} 6. c3 {[%clk 0:03:02.8]} 6... O-O {[%clk
0:02:57.2]} 7. Re1 {[%clk 0:03:03.4]} 7... a6 {[%clk 0:02:57.2]} 8. Bg5 {[%clk
0:03:03.6]} 8... h6 {[%clk 0:02:55.6]} 9. Bh4 {[%clk 0:03:04.2]} 9... g5 {[%clk
0:02:56]} 10. Bg3 {[%clk 0:03:04.8]} 10... Ba7 {[%clk 0:02:55.1]} 11. Nbd2
{[%clk 0:03:04.8]} 11... Ne7 {[%clk 0:02:52]} 12. d4 {[%clk 0:03:04.5]} 12...
exd4 {[%clk 0:02:51.6]} 13. cxd4 {[%clk 0:03:04.5]} 13... Ng6 {[%clk 0:02:52.1]}
14. e5 {[%clk 0:03:04.7]} 14... dxe5 {[%clk 0:02:52.1]} 15. dxe5 {[%clk
0:03:00.7]} 15... Nh5 {[%clk 0:02:49.6]} 16. Qc2 {[%clk 0:03:00.8]} 16... Kg7
{[%clk 0:02:47]} 17. Rad1 {[%clk 0:02:59.9]} 17... Nxg3 {[%clk 0:02:46.1]} 18.
hxg3 {[%clk 0:02:59.9]} 18... Qe7 {[%clk 0:02:36.1]} 19. Qc3 {[%clk 0:02:58.9]}
19... Be6 {[%clk 0:02:31.6]} 20. Bxe6 {[%clk 0:02:53.8]} 20... fxe6 {[%clk
0:02:32.5]} 21. Ne4 {[%clk 0:02:51.2]} 21... Rad8 {[%clk 0:02:20.7]} 22. Nf6
{[%clk 0:02:00.8]} 22... Rxd1 {[%clk 0:02:15.6]} 23. Rxd1 {[%clk 0:02:01.7]}
23... Rd8 {[%clk 0:02:15.6]} 24. Nh5+ {[%clk 0:01:58.2]} 24... Kf7 {[%clk
0:02:03.6]} 25. Rd3 {[%clk 0:01:55.3]} 25... g4 {[%clk 0:01:49.1]} 26. Nh2
{[%clk 0:01:29.1]} 26... Rxd3 {[%clk 0:01:39.3]} 27. Qxd3 {[%clk 0:01:30]} 27...
Qg5 {[%clk 0:01:09.9]} 28. Qd7+ {[%clk 0:01:29.7]} 28... Ne7 {[%clk 0:01:07.7]}
29. Nf4 {[%clk 0:01:28.8]} 29... Qf5 {[%clk 0:00:52.7]} 30. Qxc7 {[%clk
0:01:12]} 30... Qb1+ {[%clk 0:00:52.2]} 31. Nf1 {[%clk 0:01:12.3]} 31... Qxb2
{[%clk 0:00:52.8]} 32. Ne3 {[%clk 0:01:10.3]} 32... Bxe3 {[%clk 0:00:45.2]} 33.
fxe3 {[%clk 0:01:11.2]} 33... Qxa2 {[%clk 0:00:43.8]} 34. Kh2 {[%clk 0:01:11.1]}
34... Qb3 {[%clk 0:00:30.2]} 35. e4 {[%clk 0:01:11.4]} 35... Qb5 {[%clk
0:00:26.2]} 36. Qb8 {[%clk 0:01:05.7]} 36... Nc6 {[%clk 0:00:12]} 37. Qc7+
{[%clk 0:01:02.5]} 37... Ne7 {[%clk 0:00:12.1]} 38. Qd8 {[%clk 0:01:01.6]} 38...
Qxe5 {[%clk 0:00:11.5]} 39. Qd3 {[%clk 0:00:51]} 39... b5 {[%clk 0:00:10.2]} 40.
Qe2 {[%clk 0:00:43.6]} 40... a5 {[%clk 0:00:08.2]} 41. Qxg4 {[%clk 0:00:42.2]}
41... a4 {[%clk 0:00:08.1]} 42. Nh5 {[%clk 0:00:36.7]} 42... a3 {[%clk
0:00:05.8]} 43. Qf3+ {[%clk 0:00:37]} 43... Ke8 {[%clk 0:00:03]} 44. Nf6+ {[%clk
0:00:37.2]} 44... Kd8 {[%clk 0:00:02.6]} 45. Qd3+ {[%clk 0:00:37.5]} 45... Kc8
{[%clk 0:00:01.7]} 46. Qd7+ {[%clk 0:00:36.6]} 46... Kb8 {[%clk 0:00:02.4]} 47.
Qe8+ {[%clk 0:00:34.8]} 47... Nc8 {[%clk 0:00:02.1]} 48. Nd7+ {[%clk 0:00:34.9]}
48... Kc7 {[%clk 0:00:02.8]} 49. Nxe5 {[%clk 0:00:35.8]} 49... a2 {[%clk
0:00:03.3]} 50. Qc6+ {[%clk 0:00:36.1]} 1-0

[Event "Late-Titled-Tuesday-Blitz-April-30-2024"]
[Site "Chess.com"]
[Date "2024.04.30"]
[Round "10"]
[White "ACollins05"]
[Black "Charodej1"]
[Result "1/2-1/2"]
[WhiteElo "2552"]
[BlackElo "2419"]
[TimeControl "180+1"]
[EndTime "15:54:21 PDT"]
[Termination "Game drawn by repetition"]

1. e4 {[%clk 0:03:00.9]} 1... d6 {[%clk 0:02:56.6]} 2. d4 {[%clk 0:02:59]} 2...
Nf6 {[%clk 0:02:57.2]} 3. Nc3 {[%clk 0:02:58.9]} 3... g6 {[%clk 0:02:57.8]} 4.
Nf3 {[%clk 0:02:58.2]} 4... Bg7 {[%clk 0:02:58.3]} 5. h3 {[%clk 0:02:58.8]} 5...
O-O {[%clk 0:02:58.3]} 6. Be2 {[%clk 0:02:58.4]} 6... c5 {[%clk 0:02:58.3]} 7.
O-O {[%clk 0:02:57.9]} 7... cxd4 {[%clk 0:02:56.1]} 8. Nxd4 {[%clk 0:02:58.8]}
8... Nc6 {[%clk 0:02:55.6]} 9. Be3 {[%clk 0:02:59.5]} 9... Bd7 {[%clk
0:02:54.4]} 10. Qd2 {[%clk 0:02:57.3]} 10... Rc8 {[%clk 0:02:53.7]} 11. Rfd1
{[%clk 0:02:56.8]} 11... a6 {[%clk 0:02:53.4]} 12. Rac1 {[%clk 0:02:56.1]} 12...
b5 {[%clk 0:02:51.2]} 13. Bf3 {[%clk 0:02:54]} 13... Ne5 {[%clk 0:02:50.7]} 14.
Be2 {[%clk 0:02:53.5]} 14... Nc4 {[%clk 0:02:50.5]} 15. Bxc4 {[%clk 0:02:53.1]}
15... Rxc4 {[%clk 0:02:50.5]} 16. f3 {[%clk 0:02:52.7]} 16... Qa8 {[%clk
0:02:48.1]} 17. Nce2 {[%clk 0:02:49.7]} 17... Rfc8 {[%clk 0:02:47.5]} 18. c3
{[%clk 0:02:48.7]} 18... a5 {[%clk 0:02:45.4]} 19. a3 {[%clk 0:02:42.4]} 19...
Qb7 {[%clk 0:02:07.6]} 20. Nb3 {[%clk 0:02:38.1]} 20... Qc7 {[%clk 0:02:02.8]}
21. Nbd4 {[%clk 0:02:35.4]} 21... h5 {[%clk 0:01:50]} 22. h4 {[%clk 0:02:30.5]}
22... Qb7 {[%clk 0:01:43.3]} 23. Nb3 {[%clk 0:02:28.2]} 23... Qa6 {[%clk
0:01:39.8]} 24. Nbd4 {[%clk 0:02:27.9]} 24... Qb7 {[%clk 0:01:36.4]} 25. Nb3
{[%clk 0:02:25.9]} 25... Qa6 {[%clk 0:01:36.6]} 26. Nf4 {[%clk 0:02:15.3]} 26...
R4c7 {[%clk 0:01:31.5]} 27. Nd3 {[%clk 0:02:08.3]} 27... Be6 {[%clk 0:01:28.4]}
28. Nd4 {[%clk 0:02:07.3]} 28... Bc4 {[%clk 0:01:27.4]} 29. Nf2 {[%clk
0:02:03.5]} 29... Nd7 {[%clk 0:01:27.1]} 30. Nc2 {[%clk 0:02:01.4]} 30... Nc5
{[%clk 0:01:25.8]} 31. Bxc5 {[%clk 0:01:56.5]} 31... Rxc5 {[%clk 0:01:24.4]} 32.
Nd4 {[%clk 0:01:56.1]} 32... R5c7 {[%clk 0:01:20.7]} 33. Nc2 {[%clk 0:01:51.3]}
33... Bb3 {[%clk 0:01:20]} 34. Re1 {[%clk 0:01:47.9]} 34... Bf6 {[%clk
0:01:12.9]} 35. Nd4 {[%clk 0:01:46.4]} 35... Bc4 {[%clk 0:01:11.6]} 36. g3
{[%clk 0:01:46]} 36... Qb6 {[%clk 0:01:02]} 37. Red1 {[%clk 0:01:40.6]} 37...
Rb8 {[%clk 0:00:59.3]} 38. Kg2 {[%clk 0:01:37.1]} 38... b4 {[%clk 0:00:57.9]}
39. cxb4 {[%clk 0:01:36.6]} 39... axb4 {[%clk 0:00:58]} 40. axb4 {[%clk
0:01:35.4]} 40... Be6 {[%clk 0:00:24.1]} 41. Rxc7 {[%clk 0:01:33.2]} 41... Qxc7
{[%clk 0:00:23.3]} 42. Nxe6 {[%clk 0:01:30.8]} 42... fxe6 {[%clk 0:00:23.1]} 43.
Nd3 {[%clk 0:01:30.9]} 43... Qc4 {[%clk 0:00:21.7]} 44. Rc1 {[%clk 0:01:29.1]}
44... Qb3 {[%clk 0:00:21.5]} 45. Nf4 {[%clk 0:01:18.9]} 45... Qxb2 {[%clk
0:00:20.6]} 46. Qxb2 {[%clk 0:01:15.8]} 46... Bxb2 {[%clk 0:00:21.5]} 47. Rb1
{[%clk 0:01:15.9]} 47... Bc3 {[%clk 0:00:21.4]} 48. b5 {[%clk 0:01:15.3]} 48...
Kf7 {[%clk 0:00:21.6]} 49. Kf2 {[%clk 0:01:14.6]} 49... Bd4+ {[%clk 0:00:21.4]}
50. Ke2 {[%clk 0:01:14.8]} 50... e5 {[%clk 0:00:21.8]} 51. Nd5 {[%clk 0:01:15]}
51... e6 {[%clk 0:00:22]} 52. Nc7 {[%clk 0:01:11.3]} 52... Rc8 {[%clk
0:00:21.9]} 53. b6 {[%clk 0:01:02.6]} 53... Bxb6 {[%clk 0:00:21.2]} 54. Rxb6
{[%clk 0:01:03.5]} 54... Rxc7 {[%clk 0:00:21.3]} 55. Rxd6 {[%clk 0:01:04.1]}
55... Ke7 {[%clk 0:00:21]} 56. Ra6 {[%clk 0:01:03.5]} 56... Rc2+ {[%clk
0:00:20.5]} 57. Ke3 {[%clk 0:01:03.6]} 57... Kf6 {[%clk 0:00:20.5]} 58. f4
{[%clk 0:00:54.4]} 58... Rc3+ {[%clk 0:00:20.4]} 59. Kf2 {[%clk 0:00:54.4]}
59... Rc4 {[%clk 0:00:19.1]} 60. Kf3 {[%clk 0:00:53.1]} 60... Rc3+ {[%clk
0:00:19.5]} 61. Kf2 {[%clk 0:00:52.6]} 61... Rc2+ {[%clk 0:00:19.9]} 62. Kf3
{[%clk 0:00:52.8]} 62... Rc3+ {[%clk 0:00:20.2]} 63. Kf2 {[%clk 0:00:50]}
1/2-1/2

[Event "Late-Titled-Tuesday-Blitz-April-30-2024"]
[Site "Chess.com"]
[Date "2024.04.30"]
[Round "10"]
[White "Revan_2002"]
[Black "artin10862"]
[Result "0-1"]
[WhiteElo "2776"]
[BlackElo "2871"]
[TimeControl "180+1"]
[EndTime "15:54:25 PDT"]
[Termination "artin10862 won by resignation"]

1. d4 {[%clk 0:03:00.9]} 1... Nf6 {[%clk 0:02:59.2]} 2. c4 {[%clk 0:02:56.5]}
2... e6 {[%clk 0:02:58.9]} 3. Nf3 {[%clk 0:02:54.8]} 3... b6 {[%clk 0:02:55.4]}
4. a3 {[%clk 0:02:54.4]} 4... Bb7 {[%clk 0:02:47.3]} 5. Nc3 {[%clk 0:02:53.3]}
5... d5 {[%clk 0:02:48]} 6. cxd5 {[%clk 0:02:52.6]} 6... Nxd5 {[%clk 0:02:48.9]}
7. Qc2 {[%clk 0:02:52.7]} 7... c5 {[%clk 0:02:45.9]} 8. e4 {[%clk 0:02:51.1]}
8... Nxc3 {[%clk 0:02:45.8]} 9. bxc3 {[%clk 0:02:52]} 9... Be7 {[%clk 0:02:44]}
10. Bd3 {[%clk 0:02:50.6]} 10... O-O {[%clk 0:02:43.3]} 11. O-O {[%clk
0:02:50.6]} 11... Nc6 {[%clk 0:02:28.7]} 12. Bb2 {[%clk 0:02:49.2]} 12... Rc8
{[%clk 0:02:25.6]} 13. Qe2 {[%clk 0:02:48.7]} 13... cxd4 {[%clk 0:02:23.6]} 14.
cxd4 {[%clk 0:02:48.1]} 14... Bf6 {[%clk 0:02:24.2]} 15. e5 {[%clk 0:02:21.8]}
15... Be7 {[%clk 0:02:23.5]} 16. Rad1 {[%clk 0:02:21.4]} 16... Na5 {[%clk
0:02:21]} 17. Nd2 {[%clk 0:02:18.4]} 17... Qd7 {[%clk 0:01:48.8]} 18. f4 {[%clk
0:02:15]} 18... Qa4 {[%clk 0:01:47.5]} 19. f5 {[%clk 0:02:09.1]} 19... exf5
{[%clk 0:01:46.6]} 20. Bxf5 {[%clk 0:01:35]} 20... Rc2 {[%clk 0:01:45.4]} 21.
Bxc2 {[%clk 0:01:18.1]} 21... Qxc2 {[%clk 0:01:46.3]} 22. Ba1 {[%clk 0:01:18.5]}
22... Bg5 {[%clk 0:01:28.1]} 23. Qf2 {[%clk 0:01:07.7]} 23... Be7 {[%clk
0:01:04.9]} 24. Nb1 {[%clk 0:00:38.9]} 24... Qg6 {[%clk 0:00:50.6]} 25. d5
{[%clk 0:00:34.2]} 25... Nb3 {[%clk 0:00:44.9]} 26. Qb2 {[%clk 0:00:06.1]} 26...
Nxa1 {[%clk 0:00:31.7]} 27. Qxa1 {[%clk 0:00:07]} 27... Bc5+ {[%clk 0:00:20.7]}
28. Kh1 {[%clk 0:00:06.5]} 28... Ba6 {[%clk 0:00:21.6]} 29. Rfe1 {[%clk
0:00:03.1]} 29... Bf2 {[%clk 0:00:20.2]} 30. Rf1 {[%clk 0:00:01.9]} 30... Bxf1
{[%clk 0:00:18.6]} 31. Rxf1 {[%clk 0:00:02.8]} 31... Qd3 {[%clk 0:00:18.6]} 32.
Nc3 {[%clk 0:00:01.8]} 32... Bd4 {[%clk 0:00:18.4]} 33. Rc1 {[%clk 0:00:01]}
33... Bxe5 {[%clk 0:00:17.2]} 34. d6 {[%clk 0:00:01.4]} 34... Qxd6 {[%clk
0:00:15.5]} 35. Qb1 {[%clk 0:00:01.7]} 35... Bxh2 {[%clk 0:00:15.3]} 36. Nb5
{[%clk 0:00:01.5]} 36... Qh6 {[%clk 0:00:15.4]} 37. g4 {[%clk 0:00:00.4]} 0-1